bitfinex/quotes_ETHUSD_20250625
["timestamp","ask_amount","ask_price","bid_price","bid_amount"]
[1750867740808,0.2072,2411.7,2411.3,4.35419937]
[1750867741180,0.2072,2411.7,2411.6,4.14662464]
[1750867741390,0.2072,2412.0,2411.8,4.14611013]
[1750867741723,0.2072,2412.0,2411.9,4.14610887]
[1750867742022,1.968,2412.2,2411.8,4.14621734]
[1750867742208,0.2072,2412.3,2412.0,4.14590331]
[1750867742988,4.14479031,2412.7,2412.0,0.55]
[1750867742989,1.968,2412.7,2412.0,0.55]
[1750867743313,4.14484213,2412.7,2412.3,0.7648]
[1750867743494,0.9854,2412.8,2412.3,0.972]
[1750867743820,0.9854,2412.8,2412.4,4.14521876]
[1750867744024,2.9794135,2412.8,2411.9,0.7803]
[1750867744324,0.2072,2412.4,2412.0,0.55]
[1750867744497,2.1752,2412.7,2412.2,4.35276904]
[1750867744701,6.31993419,2412.7,2412.2,4.35270127]
[1750867744902,2.1752,2412.7,2412.3,4.14541297]
[1750867745309,0.2072,2412.7,2412.4,4.14514861]
[1750867745511,1.969,2412.9,2412.5,4.93193217]
[1750867745821,2.1762,2412.9,2412.5,5.13913217]
[1750867746028,2.1762,2412.9,2412.6,4.14487993]
[1750867746525,0.2072,2412.9,2412.6,4.14487993]
[1750867746710,0.2072,2412.9,2412.6,1.01339348]
[1750867746919,10.77,2413.0,2412.5,0.7869]
[1750867747122,0.7774,2412.8,2412.2,0.8121]
[1750867747424,0.2072,2412.7,2412.2,0.2072]
[1750867747632,4.14512809,2412.5,2412.2,0.2072]
[1750867747821,0.2072,2412.4,2412.0,10.2072]
[1750867748025,0.2072,2412.4,2412.2,4.14559318]
[1750867748323,0.2072,2412.4,2412.1,4.14567109]
[1750867748704,0.2072,2412.4,2412.1,4.69570612]
[1750867748892,2.1752,2412.7,2412.2,4.3526479]
[1750867749094,2.1752,2412.7,2412.0,10.0]
[1750867749095,1.968,2412.7,2412.0,10.0]
[1750867749299,0.2072,2412.5,2412.1,4.14567946]
[1750867750136,0.2072,2412.5,2412.1,4.14565677]
[1750867750492,0.2072,2412.5,2412.0,11.28841]
[1750867750693,4.14561547,2412.2,2412.0,0.2072]
[1750867750899,0.2072,2412.5,2412.0,0.2072]
[1750867750900,4.35234929,2412.5,2412.0,0.2072]
[1750867751207,4.14543321,2412.3,2412.0,0.2072]
[1750867751435,4.35243371,2412.5,2412.0,4.353052]
[1750867752439,4.14525852,2412.4,2412.0,0.2072]
[1750867752738,4.35231271,2412.5,2412.0,4.35307153]
[1750867752927,4.14527837,2412.4,2412.0,0.2072]
[1750867753537,4.35231337,2412.5,2412.0,4.35304832]
[1750867754137,4.14533525,2412.4,2412.0,0.2072]
[1750867754301,4.14542394,2412.3,2412.0,0.2072]
[1750867755241,4.145344,2412.4,2412.0,0.2072]
[1750867756149,4.14550793,2412.3,2412.0,0.2072]
[1750867756717,0.2072,2412.5,2412.0,0.2072]
[1750867757052,4.14525622,2412.4,2412.0,0.2072]
[1750867757649,0.2072,2412.5,2412.0,0.2072]
[1750867757829,4.1457651,2412.1,2412.0,0.2072]
[1750867758223,4.1457651,2412.1,2411.7,0.2072]
[1750867758224,4.35302401,2412.1,2411.7,0.2072]
[1750867759011,4.35302401,2412.1,2411.7,4.35361574]
[1750867759012,4.35297482,2412.1,2411.7,4.35361574]
[1750867759439,4.35297482,2412.1,2411.7,0.2072]
[1750867760355,0.2072,2412.1,2411.7,4.35364222]
[1750867760650,4.14567938,2412.2,2411.8,0.55]
[1750867760947,4.14567938,2412.2,2411.9,0.2072]
[1750867761648,6.32172196,2412.3,2411.9,0.2072]
[1750867762024,4.14561066,2412.2,2411.9,0.2072]
[1750867762249,4.14579451,2412.1,2411.9,0.2072]
[1750867762862,4.14566847,2412.2,2411.9,0.2072]
[1750867763157,4.14578715,2412.1,2411.9,0.2072]
[1750867763631,4.14567809,2412.2,2411.9,0.2072]
[1750867764551,4.14581148,2412.1,2411.9,0.2072]
[1750867764850,4.14593698,2412.0,2411.9,0.2072]
[1750867765051,4.14626953,2411.9,2411.6,0.8002]
[1750867766059,4.3532045,2412.0,2411.6,0.8002]
[1750867766440,0.2072,2412.0,2411.7,4.14637532]
[1750867766771,0.2072,2412.0,2411.6,4.94674521]
[1750867766973,4.35321346,2412.0,2411.6,0.8002]
[1750867767272,4.14632537,2411.8,2411.5,0.2072]
[1750867767478,4.14697434,2411.4,2411.0,0.8213]
[1750867767776,4.14697434,2411.4,2410.7,38.04714388]
[1750867767777,4.14765657,2411.0,2410.8,0.2072]
[1750867767981,6.94862861,2410.9,2410.7,37.63288604]
[1750867768145,15.12430066,2410.8,2410.7,37.63288604]
[1750867768342,15.12430066,2410.8,2410.7,10.2822519]
[1750867768692,27.38966776,2410.8,2410.7,10.2822519]
[1750867768849,15.12430066,2410.8,2410.7,10.2822519]
[1750867769181,13.85586149,2410.8,2410.7,10.2822519]
[1750867769489,20.0653,2410.8,2410.7,10.2822519]
[1750867769686,10.9763,2410.8,2410.7,10.2822519]
[1750867769866,0.9763,2410.8,2410.7,10.2822519]
[1750867770485,0.2072,2410.8,2410.7,14.43042462]
[1750867770784,1.963,2411.2,2410.8,4.14800066]
[1750867770967,1.963,2411.2,2411.1,4.14748455]
[1750867771275,0.8182,2411.7,2410.9,0.8288]
[1750867771504,0.2072,2411.1,2410.9,4.14773676]
[1750867771807,0.8182,2411.7,2411.2,4.14731254]
[1750867771808,1.963,2411.3,2411.2,4.14731254]
[1750867772115,1.963,2411.3,2411.0,4.14755767]
[1750867772287,1.963,2411.3,2411.1,4.14747916]
[1750867772668,1.963,2411.3,2411.0,4.14759966]
[1750867772867,1.963,2411.3,2411.1,4.14747591]
[1750867773084,1.963,2411.3,2410.9,0.7572]
[1750867773291,2.1702,2411.4,2410.9,4.90491367]
[1750867773535,2.89202,2411.4,2411.0,4.14764555]
[1750867773686,0.2072,2411.2,2411.1,4.14735052]
[1750867774410,1.963,2411.5,2411.3,4.14706716]
[1750867774610,0.2072,2411.4,2411.3,4.14706716]
[1750867774778,0.2072,2411.4,2411.2,4.14726688]
[1750867774973,0.2072,2411.4,2411.3,4.14714054]
[1750867775175,0.2072,2411.4,2411.2,4.14722891]
[1750867775483,0.2072,2411.4,2411.1,4.14733915]
[1750867775689,0.2072,2411.4,2411.2,4.14731156]
[1750867775888,0.2072,2411.4,2411.3,4.14714054]
[1750867776305,0.2072,2411.4,2411.1,4.14741227]
[1750867776514,1.963,2411.6,2410.8,10.0]
[1750867776675,0.2072,2411.2,2410.8,10.2072]
[1750867776878,0.2072,2411.2,2411.1,4.14748455]
[1750867777079,0.2072,2411.4,2411.3,4.14708173]
[1750867777504,0.2072,2411.4,2411.0,0.2072]
[1750867777814,0.2072,2411.4,2411.2,4.14718769]
[1750867778017,0.2072,2411.4,2411.3,4.14714054]
[1750867778894,0.2072,2411.4,2411.2,4.14731254]
[1750867779505,0.2072,2411.4,2411.3,4.14714054]
[1750867779809,2.1702,2411.7,2411.6,4.14657478]
[1750867780192,2.1702,2411.7,2411.5,4.14672823]
[1750867780593,2.1702,2411.7,2411.3,4.35419762]
[1750867780790,0.2072,2411.5,2411.2,4.14716545]
[1750867780994,0.796,2411.6,2410.8,14.14789451]
[1750867781311,0.2072,2411.1,2410.8,14.14797996]
[1750867781711,0.2072,2411.1,2410.7,14.63760543]
[1750867783417,1.963,2411.2,2410.7,10.2822519]
[1750867783711,1.0337,2410.8,2410.7,10.2822519]
[1750867790495,0.2072,2410.8,2410.7,10.2822519]
[1750867790704,0.2072,2410.8,2410.7,14.43042462]
[1750867791224,0.2072,2410.8,2410.7,10.2822519]
[1750867792194,0.2072,2410.8,2410.7,14.43042462]
[1750867792394,0.2072,2410.8,2410.7,10.2822519]
[1750867793422,0.2072,2410.8,2410.7,14.43042462]
[1750867796210,0.2072,2410.8,2410.7,10.2822519]
[1750867796714,0.2072,2410.8,2410.7,14.43042462]
[1750867797234,0.2072,2410.8,2410.7,10.2822519]
[1750867797532,0.2072,2410.8,2410.7,14.43042462]
[1750867798523,0.2072,2410.8,2410.7,10.2822519]
[1750867798924,0.2072,2410.8,2410.7,14.43042462]
[1750867800317,0.2072,2410.8,2410.7,10.2822519]
[1750867800828,1.0192,2410.8,2410.7,10.2822519]
[1750867801028,1.31752,2410.8,2410.7,10.2822519]
[1750867802751,10.0922,2410.8,2410.7,10.2822519]
[1750867804073,9.2802,2410.8,2410.7,10.2822519]
[1750867804236,0.2072,2410.8,2410.7,10.2822519]
[1750867804436,2.1662,2410.8,2410.7,10.2822519]
[1750867810871,0.2072,2410.8,2410.7,10.2822519]
[1750867811062,19.8665,2410.8,2410.7,10.2822519]
[1750867811260,21.85315,2410.8,2410.7,10.2822519]
[1750867812060,26.00115066,2410.8,2410.7,10.2822519]
[1750867812369,4.14980269,2409.8,2409.4,0.7556]
[1750867812567,1.959,2409.8,2409.4,0.7556]
[1750867812752,1.959,2409.8,2408.8,12.2653671]
[1750867812753,4.14999911,2409.7,2409.2,4.15072952]
[1750867812956,1.959,2409.8,2409.2,4.97332497]
[1750867813157,1.959,2409.8,2409.4,4.15038748]
[1750867813353,1.959,2409.8,2409.2,2.3200325]
[1750867813576,1.959,2409.8,2409.5,4.15015904]
[1750867814074,1.959,2409.8,2409.6,4.14997549]
[1750867814270,1.959,2409.8,2409.5,4.15018381]
[1750867814466,1.959,2409.8,2409.2,2.3200325]
[1750867814672,2.94597,2409.8,2408.9,4.91930601]
[1750867814873,2.94597,2409.8,2409.1,4.15091819]
[1750867815070,2.94597,2409.8,2408.9,4.91928694]
[1750867815371,0.777,2409.2,2408.6,0.7681]
[1750867815572,9.07,2409.1,2408.6,0.7681]
[1750867815755,4.1512013,2409.0,2408.3,4.93017957]
[1750867815953,9.07,2409.1,2408.3,1.31237121]
[1750867816283,9.07,2409.1,2408.3,4.93014136]
[1750867816453,9.07,2409.1,2408.4,4.15203669]
[1750867816664,9.07,2409.1,2408.5,4.1519618]
[1750867816858,9.07,2409.1,2408.3,0.7779]
[1750867817171,9.07,2409.1,2408.3,4.93008617]
[1750867817385,0.9847,2409.0,2408.2,4.15240181]
[1750867817696,0.9847,2409.0,2408.0,4.24738596]
[1750867817697,0.7561,2408.9,2408.0,4.24738596]
[1750867817898,0.7561,2408.9,2408.0,0.0946653]
[1750867818492,9.07,2408.8,2408.3,4.15221991]
[1750867818994,15.20634824,2408.8,2408.2,4.15239926]
[1750867819202,15.20634824,2408.8,2408.0,0.0946653]
[1750867819203,4.15161705,2408.7,2408.0,0.0946653]
[1750867819370,4.1524069,2408.3,2408.0,0.0946653]
[1750867819571,1.959,2408.2,2408.0,0.0946653]
[1750867819787,0.7963,2408.6,2408.0,4.24737441]
[1750867820111,9.07,2408.5,2408.1,4.57729815]
[1750867820267,9.07,2408.5,2408.0,5.01935939]
[1750867820268,9.07,2408.5,2408.0,0.8665653]
[1750867820602,9.07,2408.5,2408.0,0.0946653]
[1750867820786,4.15238039,2408.3,2408.0,0.0946653]
[1750867820986,9.07,2408.5,2408.0,0.0946653]
[1750867821199,4.15238891,2408.3,2408.0,0.0946653]
[1750867821361,5.13885612,2408.4,2408.0,0.0946653]
[1750867821567,4.15231403,2408.3,2408.0,0.0946653]
[1750867821787,0.98663,2408.4,2408.0,0.0946653]
[1750867824421,4.15265146,2408.1,2408.0,0.0946653]
[1750867824716,5.06608736,2408.1,2408.0,0.0946653]
[1750867824869,15.89528736,2408.1,2408.0,0.0946653]
[1750867825071,23.69528736,2408.1,2408.0,0.0946653]
[1750867825371,30.80628736,2408.1,2408.0,0.0946653]
[1750867825578,23.69528736,2408.1,2408.0,0.0946653]
[1750867825774,32.76628736,2408.1,2408.0,0.0946653]
[1750867826200,33.31628736,2408.1,2408.0,0.0946653]
[1750867827197,23.69528736,2408.1,2408.0,0.0946653]
[1750867827510,28.6146359,2408.1,2408.0,0.0946653]
[1750867827808,19.5426359,2408.1,2408.0,0.0946653]
[1750867828183,28.6136359,2408.1,2408.0,0.0946653]
[1750867828395,19.5426359,2408.1,2408.0,0.0946653]
[1750867828580,32.76628736,2408.1,2408.0,0.0946653]
[1750867829603,11.7426359,2408.1,2408.0,0.0946653]
[1750867829776,10.0,2408.1,2408.0,0.0946653]
[1750867829978,9.073,2408.1,2408.0,0.0946653]
[1750867830302,2.7871,2408.8,2408.6,4.1516833]
[1750867830506,2.7871,2408.8,2408.1,0.7589]
[1750867830507,0.2072,2408.6,2408.4,4.15198335]
[1750867830682,7.112,2408.7,2408.1,0.7589]
[1750867830683,0.2072,2408.3,2408.1,0.7589]
[1750867830882,0.2072,2408.3,2408.1,2.09151324]
[1750867831192,0.2072,2408.3,2408.1,0.7589]
[1750867831370,0.2072,2408.1,2408.0,0.0946653]
[1750867831611,7.3182,2408.1,2408.0,0.0946653]
[1750867833630,8.1443,2408.1,2408.0,0.0946653]
[1750867833831,0.2072,2408.1,2408.0,0.0946653]
[1750867834038,9.2732,2408.1,2408.0,0.0946653]
[1750867834546,13.42585146,2408.1,2408.0,0.0946653]
[1750867834920,9.2732,2408.1,2408.0,0.0946653]
[1750867836330,0.2072,2408.1,2408.0,0.0946653]
[1750867836626,2.1622,2408.1,2408.0,0.0946653]
[1750867836828,9.2722,2408.1,2408.0,0.0946653]
[1750867840611,9.064,2408.7,2408.1,1.3173]
[1750867840917,9.064,2408.7,2408.3,4.15228519]
[1750867841318,9.064,2408.7,2408.4,4.15211656]
[1750867841645,9.064,2408.7,2408.5,4.15187914]
[1750867841846,9.064,2408.7,2408.6,4.15178942]
[1750867842032,9.064,2408.7,2408.2,4.15242742]
[1750867842233,10.792,2409.2,2408.5,0.8072]
[1750867842421,19.856,2409.2,2408.8,4.15128491]
[1750867842623,19.856,2409.2,2408.6,4.15172773]
[1750867842828,19.856,2409.2,2408.6,4.15178942]
[1750867843031,4.15102931,2409.1,2408.6,4.15178942]
[1750867843260,4.15110261,2409.0,2408.5,0.8072]
[1750867843462,2.81576654,2409.1,2408.5,0.8072]
[1750867843657,4.15125987,2409.0,2408.5,0.8072]
[1750867844450,3.59076654,2409.1,2408.5,0.8072]
[1750867844657,7.107,2409.0,2408.5,4.95904551]
[1750867844821,7.107,2409.0,2408.7,4.15153355]
[1750867845023,7.107,2409.0,2408.7,4.15149847]
[1750867845225,7.107,2409.0,2408.5,4.95914943]
[1750867845555,9.0924,2409.0,2408.5,0.8072]
[1750867845945,4.15128557,2408.9,2408.5,0.8072]
[1750867846356,13.24358009,2409.0,2408.5,4.95914765]
[1750867846550,4.15134454,2408.9,2408.5,0.8072]
[1750867846777,5.89083399,2408.9,2408.5,0.8072]
[1750867846938,5.89083399,2408.9,2408.3,0.7926]
[1750867847145,10.0,2408.8,2408.0,0.8872653]
[1750867847442,1.955,2408.7,2408.0,0.8872653]
[1750867847670,7.106,2408.6,2408.0,0.8872653]
[1750867847895,0.9061,2408.5,2408.0,0.8872653]
[1750867848047,4.15252945,2408.2,2408.0,0.8872653]
[1750867848482,11.25852945,2408.2,2408.0,0.8872653]
[1750867848991,7.106,2408.2,2408.0,0.8872653]
[1750867850587,9.061,2408.2,2408.0,0.8872653]
[1750867851084,9.061,2408.2,2408.0,0.0946653]
[1750867853983,10.04598,2408.2,2408.0,0.0946653]
[1750867854517,4.15265146,2408.1,2408.0,0.0946653]
[1750867854678,14.1985466,2408.2,2408.0,0.0946653]
[1750867854878,4.15265146,2408.1,2408.0,0.0946653]
[1750867856578,14.15265146,2408.1,2408.0,0.0946653]
[1750867856784,27.84159913,2408.1,2408.0,0.0946653]
[1750867858111,35.64159913,2408.1,2408.0,0.0946653]
[1750867858680,36.19159913,2408.1,2408.0,0.0946653]
[1750867860210,35.64159913,2408.1,2408.0,0.0946653]
[1750867860512,44.69959913,2408.1,2408.0,0.0946653]
[1750867861120,43.86909913,2408.1,2408.0,0.0946653]
[1750867861293,29.845,2408.1,2408.0,0.0946653]
[1750867861498,33.99765146,2408.1,2408.0,0.0946653]
[1750867862222,34.76085146,2408.1,2408.0,0.0946653]
[1750867864394,24.94565146,2408.1,2408.0,0.0946653]
[1750867864603,33.99665146,2408.1,2408.0,0.0946653]
[1750867864826,37.39631661,2408.1,2408.0,0.0946653]
[1750867869042,28.34531661,2408.1,2408.0,0.0946653]
[1750867869217,37.39531661,2408.1,2408.0,0.0946653]
[1750867871467,38.20141661,2408.1,2408.0,0.0946653]
[1750867875260,38.19941661,2408.1,2408.0,0.0946653]
[1750867876747,37.39331661,2408.1,2408.0,0.0946653]
[1750867876930,26.89465146,2408.1,2408.0,0.0946653]
[1750867877129,33.99265146,2408.1,2408.0,0.0946653]
[1750867877368,29.84,2408.1,2408.0,0.0946653]
[1750867878071,33.99265146,2408.1,2408.0,0.0946653]
[1750867881070,34.78475146,2408.1,2408.0,0.0946653]
[1750867883855,42.58475146,2408.1,2408.0,0.0946653]
[1750867886052,41.79265146,2408.1,2408.0,0.0946653]
[1750867886267,32.74565146,2408.1,2408.0,0.0946653]
[1750867886565,41.78865146,2408.1,2408.0,0.0946653]
[1750867888051,32.74565146,2408.1,2408.0,0.0946653]
[1750867888240,41.78865146,2408.1,2408.0,0.0946653]
[1750867901311,24.68765146,2408.1,2408.0,0.0946653]
[1750867901627,22.03365146,2408.1,2408.0,0.8954653]
[1750867901792,32.03365146,2408.1,2408.0,0.8954653]
[1750867903516,17.881,2408.1,2408.0,0.8954653]
[1750867903821,22.03365146,2408.1,2408.0,0.0946653]
[1750867904035,34.43120411,2408.1,2408.0,0.0946653]
[1750867908415,14.94565146,2408.1,2408.0,0.0946653]
[1750867908612,10.796,2409.0,2408.0,0.9063653]
[1750867908814,10.796,2409.0,2408.3,4.96389006]
[1750867908815,4.15157309,2408.8,2408.3,4.96389006]
[1750867909012,7.084,2408.7,2408.4,0.8117]
[1750867909240,1.942,2408.9,2408.4,0.8117]
[1750867909241,7.084,2408.6,2408.4,4.15197982]
[1750867909416,7.084,2408.6,2408.5,1.22689798]
[1750867910406,11.942,2408.9,2408.5,1.22689798]
[1750867910606,11.2344447,2408.8,2408.5,0.8117]
[1750867911039,14.94715224,2409.0,2408.5,4.96354426]
[1750867911040,14.94716335,2409.0,2408.5,4.96354426]
[1750867911210,7.082,2408.9,2408.6,0.7714]
[1750867911540,12.738,2409.0,2408.6,4.15173251]
[1750867911706,7.081,2408.9,2408.7,0.7714]
[1750867911907,7.081,2408.9,2408.8,0.49231325]
[1750867912858,7.081,2408.9,2408.7,0.7714]
[1750867913837,7.08,2408.9,2408.7,0.7714]
[1750867914144,0.2072,2409.2,2408.9,0.7719]
[1750867914359,7.079,2409.1,2408.4,12.2653671]
[1750867914539,10.793,2409.9,2409.0,0.7572]
[1750867914540,2.1492,2409.4,2409.0,0.7572]
[1750867914849,7.079,2409.3,2409.1,0.49083915]
[1750867915031,7.079,2409.3,2409.2,0.7719]
[1750867915546,11.22958315,2409.3,2409.2,0.7719]
[1750867915759,7.079,2409.3,2409.2,0.7719]
[1750867915923,0.2072,2409.4,2409.2,0.7719]
[1750867916129,11.22715198,2409.6,2409.2,0.7719]
[1750867916330,11.22715198,2409.6,2409.3,0.4922745]
[1750867917553,4.15015198,2409.6,2409.3,0.4922745]
[1750867917746,7.077,2409.5,2409.3,4.64274629]
[1750867917943,7.077,2409.5,2409.4,0.8026]
[1750867918263,4.1491746,2410.2,2409.4,0.8026]
[1750867918264,4.14864322,2410.5,2409.9,4.14947657]
[1750867918564,7.076,2410.6,2410.2,0.8026]
[1750867918743,11.2242459,2410.7,2410.2,0.8026]
[1750867919144,4.14855082,2410.5,2410.2,0.8026]
[1750867919357,4.14886113,2410.3,2410.2,0.8026]
[1750867919556,11.22374459,2410.4,2410.2,0.8026]
[1750867920554,4.14929842,2410.1,2409.7,0.8248]
[1750867920867,7.075,2410.0,2409.7,0.8248]
[1750867921170,7.074,2409.9,2409.7,4.97467991]
[1750867921576,7.074,2409.9,2409.8,4.69972196]
[1750867921739,7.074,2410.1,2409.8,5.50433593]
[1750867922072,7.073,2410.1,2409.9,4.14951529]
[1750867922269,4.14877761,2410.4,2409.9,4.14951529]
[1750867922445,4.14840244,2410.6,2409.8,5.66505897]
[1750867922446,7.073,2410.6,2409.8,5.66505897]
[1750867922650,4.1479245,2410.9,2410.5,0.7761]
[1750867922849,11.22117759,2410.7,2410.5,0.7761]
[1750867923551,4.14817759,2410.7,2410.5,0.7761]
[1750867923739,7.072,2410.6,2410.5,0.7761]
[1750867923935,7.072,2410.6,2410.2,0.8309]
[1750867923936,4.14894648,2410.3,2410.2,0.8309]
[1750867924373,4.14872779,2410.4,2410.2,0.8309]
[1750867924544,7.072,2410.6,2410.2,0.8309]
[1750867924545,4.14861204,2410.5,2410.2,0.8309]
[1750867924956,4.14886113,2410.3,2410.2,0.8309]
[1750867925156,4.14932065,2410.1,2409.7,1.3626]
[1750867925477,4.14972196,2409.8,2409.7,0.8126]
[1750867926255,4.35692196,2409.8,2409.7,0.8126]
[1750867926479,0.2072,2409.8,2409.7,0.8126]
[1750867927675,7.069,2410.3,2409.8,0.783]
[1750867927877,0.2072,2410.1,2409.9,4.14945721]
[1750867928066,7.069,2410.3,2410.1,4.14909638]
[1750867928383,7.2762,2410.3,2410.2,0.7604]
[1750867929183,4.35606113,2410.3,2410.2,0.7604]
[1750867929387,4.14913058,2410.2,2409.8,0.7609]
[1750867929593,0.2072,2410.1,2409.8,0.7609]
[1750867929789,0.2072,2410.1,2409.8,4.91059999]
[1750867930103,7.068,2410.4,2410.1,0.7609]
[1750867930318,4.35606518,2410.3,2410.1,0.7609]
[1750867930462,0.2072,2410.3,2410.1,0.7609]
[1750867931291,0.2072,2410.3,2410.2,4.14903327]
[1750867931592,7.068,2410.4,2410.1,1.25193805]
[1750867931593,7.068,2410.4,2410.1,5.60825647]
[1750867931756,7.068,2410.4,2410.2,4.14900336]
[1750867931962,7.068,2410.4,2410.1,5.60825522]
[1750867932165,7.068,2410.4,2410.2,4.14900345]
[1750867932798,11.21677422,2410.4,2410.1,1.45913805]
[1750867932996,11.21677422,2410.4,2410.1,0.9681]
[1750867933398,4.14895292,2410.3,2410.1,0.7609]
[1750867933605,4.35615292,2410.3,2410.1,0.7609]
[1750867934586,0.2072,2410.3,2410.1,0.7609]
[1750867935698,7.066,2410.4,2410.1,0.7609]
[1750867935908,7.066,2410.4,2410.1,1.27265831]
[1750867936401,7.066,2410.4,2410.1,5.42186182]
[1750867936583,0.2072,2410.5,2410.3,4.14886113]
[1750867936790,0.2072,2410.5,2410.3,0.55]
[1750867936992,7.065,2410.5,2410.3,0.55]
[1750867937193,11.21360509,2410.5,2410.3,0.55]
[1750867937378,7.065,2410.5,2410.3,0.55]
[1750867938390,7.065,2410.5,2410.3,1.53161875]
[1750867938572,7.064,2410.5,2410.3,1.53161875]
[1750867939618,7.064,2410.5,2410.4,0.7528]
[1750867940404,11.2125169,2410.5,2410.4,0.7528]
[1750867940616,7.064,2410.5,2410.4,0.7528]
[1750867940791,11.2125169,2410.5,2410.4,0.7528]
[1750867940993,7.064,2410.5,2410.4,0.7528]
[1750867941508,7.062,2410.5,2410.4,0.7528]
[1750867941708,7.062,2410.5,2410.4,1.73358483]
[1750867942312,11.2105169,2410.5,2410.4,0.7528]
[1750867942799,7.062,2410.5,2410.4,0.7528]
[1750867943801,11.2105169,2410.5,2410.4,0.7528]
[1750867945708,11.2105169,2410.5,2410.2,0.9974]
[1750867945709,4.14869303,2410.4,2410.2,0.9974]
[1750867946517,11.21061035,2410.5,2410.2,0.9974]
[1750867946721,7.062,2410.5,2410.2,0.9974]
[1750867947026,11.21052532,2410.5,2410.2,1.92699332]
[1750867947222,7.062,2410.5,2410.2,1.92699332]
[1750867947394,10.9942,2410.7,2410.3,0.55]
[1750867947595,1.931,2410.8,2410.7,4.14817272]
[1750867947807,8.99,2410.8,2410.5,4.35557535]
[1750867948006,8.99,2410.8,2410.6,5.21620817]
[1750867948485,7.2662,2410.9,2410.7,4.14814361]
[1750867948689,7.2662,2410.9,2410.8,0.8313]
[1750867948890,11.41402861,2410.9,2410.6,0.55]
[1750867949085,7.2662,2410.9,2410.6,0.55]
[1750867949323,7.2662,2410.9,2410.6,5.68685194]
[1750867949521,0.2072,2410.9,2410.8,4.14800066]
[1750867949736,12.70209887,2411.5,2410.7,4.14814889]
[1750867949737,7.8,2411.5,2411.0,0.7999]
[1750867949899,0.2072,2411.3,2411.0,4.9474124]
[1750867950089,7.057,2411.4,2411.1,4.69740016]
[1750867950408,1.931,2411.5,2411.1,4.69740016]
[1750867950409,0.2072,2411.5,2411.3,0.55]
[1750867950609,7.057,2411.4,2411.3,0.55]
[1750867951499,7.057,2411.4,2411.3,4.69714054]
[1750867951696,1.931,2411.6,2411.4,0.7838]
[1750867952022,8.988,2411.6,2411.4,0.7838]
[1750867952520,0.2072,2411.7,2411.4,0.7838]
[1750867952521,7.056,2411.7,2411.5,0.55]
[1750867952725,7.056,2411.7,2411.5,0.7572]
[1750867952905,7.056,2411.7,2411.5,0.55]
[1750867953419,21.20114563,2411.9,2411.5,0.55]
[1750867953623,4.14637448,2411.8,2411.5,0.55]
[1750867953839,4.14637448,2411.8,2411.5,1.15496677]
[1750867954398,4.14637448,2411.8,2411.5,0.55]
[1750867954599,0.7778,2412.6,2411.7,0.55]
[1750867954800,4.14537173,2412.4,2411.9,0.55]
[1750867955116,11.20035635,2412.4,2411.9,0.55]
[1750867955736,7.055,2412.4,2412.1,0.55]
[1750867955934,7.053,2412.4,2412.2,0.46958397]
[1750867956133,1.923,2412.5,2412.2,0.46958397]
[1750867956301,7.053,2412.4,2412.2,1.28698397]
[1750867956502,7.053,2412.4,2412.2,0.8174]
[1750867956695,11.19828612,2412.4,2412.2,0.8174]
[1750867957532,11.19825836,2412.4,2412.2,0.8174]
[1750867957729,7.053,2412.4,2412.0,0.8174]
[1750867958030,4.14559323,2412.2,2411.1,4.97337662]
[1750867958333,4.14610887,2411.9,2411.2,1.20253766]
[1750867958542,9.7616,2411.8,2411.1,0.8259]
[1750867958699,4.14705944,2411.4,2411.1,0.8259]
[1750867959032,4.14719721,2411.3,2411.1,0.8259]
[1750867959534,4.14719721,2411.3,2410.6,5.13684014]
[1750867959535,4.14732372,2411.2,2410.9,0.8259]
[1750867959748,4.14765657,2411.0,2410.6,1.81445256]
[1750867959906,4.14765657,2411.0,2410.7,0.59628804]
[1750867960102,4.14794993,2410.9,2410.7,0.59628804]
[1750867960424,4.14802699,2410.8,2410.6,0.8259]
[1750867960630,11.19758204,2411.1,2410.6,4.97418692]
[1750867960808,4.14767799,2411.0,2410.6,0.8259]
[1750867961010,11.19753517,2411.1,2410.6,0.8259]
[1750867961240,4.14779282,2411.0,2410.6,0.8259]
[1750867961540,7.05,2411.1,2410.6,1.32335361]
[1750867961705,7.05,2411.1,2410.7,0.55]
[1750867962033,7.05,2411.3,2411.1,0.7608]
[1750867962240,7.05,2411.3,2411.1,1.25163422]
[1750867962416,7.05,2411.3,2411.1,0.7608]
[1750867962833,7.2572,2411.3,2411.1,0.7608]
[1750867963503,11.40434745,2411.3,2411.1,0.7608]
[1750867963816,7.2572,2411.3,2410.9,5.18411237]
[1750867964133,11.40437697,2411.3,2410.9,1.0363]
[1750867964501,7.2572,2411.3,2410.9,5.18408644]
[1750867964701,7.05,2411.3,2411.0,4.69756793]
[1750867964928,7.05,2411.3,2411.0,0.7572]
[1750867965730,7.05,2411.3,2411.0,4.90485293]
[1750867965935,7.05,2411.3,2411.0,0.7572]
[1750867967538,11.19716786,2411.3,2411.0,0.7572]
[1750867968129,4.14732544,2411.2,2411.0,0.2072]
[1750867968324,4.14732544,2411.2,2410.9,0.8291]
[1750867968325,4.35452544,2411.2,2410.9,0.8291]
[1750867968725,0.2072,2411.2,2410.9,0.8291]
[1750867968962,0.2072,2411.2,2410.9,4.97690364]
[1750867969458,0.2072,2411.2,2410.9,0.8291]
[1750867971660,0.2072,2411.2,2410.9,4.97691516]
[1750867971860,4.3545433,2411.2,2410.9,0.8291]
[1750867972062,0.2072,2411.2,2410.9,0.8291]
[1750867972260,4.35453401,2411.2,2410.9,0.8291]
[1750867972627,0.2072,2411.2,2410.8,0.55]
[1750867972832,4.35451617,2411.2,2410.8,0.55]
[1750867973233,4.14756419,2411.1,2410.8,0.55]
[1750867973748,4.14748455,2411.1,2410.7,1.0334]
[1750867973952,4.14798227,2410.9,2410.5,0.8262]
[1750867974154,8.968,2410.8,2410.5,0.8262]
[1750867974567,8.968,2410.8,2410.5,4.97464037]
[1750867974750,13.11607386,2410.8,2410.3,0.7723]